bitfinex-derivatives/quotes_ETHF0:USTF0_20250803
["timestamp","ask_amount","ask_price","bid_price","bid_amount"]
[1754251120980,1.8341,3493.8,3493.7,0.7292]
[1754251121287,1.1068,3493.6,3493.0,1.0498]
[1754251121479,0.80283481,3493.5,3493.4,1.1765]
[1754251121687,1.0155,3493.5,3493.4,1.779]
[1754251122385,1.3105,3493.5,3493.4,1.779]
[1754251122583,1.8341,3493.5,3493.4,1.779]
[1754251123478,0.7273,3493.2,3493.1,1.0313]
[1754251123678,1.8341,3493.2,3493.1,1.0313]
[1754251123983,1.8341,3493.2,3493.1,1.8079]
[1754251125786,1.4742,3493.2,3493.1,0.7137]
[1754251125985,1.7821,3493.2,3493.1,1.8109]
[1754251126388,3.2078,3493.4,3493.3,0.4023]
[1754251126584,3.2078,3493.8,3493.7,0.7137]
[1754251126887,3.4245,3493.8,3493.7,1.8109]
[1754251127085,4.1813,3493.8,3493.7,1.8109]
[1754251127390,3.7307,3493.8,3493.7,1.8109]
[1754251127985,3.4245,3493.8,3493.7,1.8109]
[1754251128191,3.2078,3493.8,3493.7,5.02073977]
[1754251128386,3.2078,3494.3,3494.2,1.4903]
[1754251128695,3.40560527,3494.3,3494.2,5.02073977]
[1754251128890,3.2078,3494.3,3494.2,1.8109]
[1754251129092,4.5021,3494.3,3494.2,1.8109]
[1754251129585,3.4245,3494.3,3494.2,1.8109]
[1754251129994,0.8437,3494.5,3494.4,0.7137]
[1754251130192,1.49205003,3494.5,3494.4,1.8109]
[1754251130501,1.2943,3494.5,3494.4,1.8109]
[1754251131702,1.6022,3494.5,3494.4,1.8109]
[1754251131903,1.8085,3494.5,3494.4,1.8109]
[1754251132099,3.78003,3494.9,3494.4,2.38319]
[1754251132303,2.80820311,3494.8,3494.7,1.8109]
[1754251133405,2.8081011,3494.8,3494.7,1.8109]
[1754251133601,2.8081011,3494.8,3494.7,1.0343]
[1754251134007,0.7438,3494.6,3494.5,1.8109]
[1754251134206,1.8085,3494.6,3494.5,1.8109]
[1754251135401,1.8085,3494.6,3494.5,0.7229]
[1754251135601,0.7438,3494.3,3494.2,1.4903]
[1754251135806,1.8085,3494.3,3494.2,1.4903]
[1754251136307,1.8085,3494.3,3494.2,1.8109]
[1754251137807,0.57224,3494.8,3494.3,0.57232]
[1754251137999,2.38074,3494.8,3494.7,1.8109]
[1754251139202,2.38074,3494.8,3493.7,3.2078]
[1754251139203,0.3079,3494.4,3494.3,0.4023]
[1754251139408,1.0517,3494.4,3494.3,1.8109]
[1754251139710,0.7438,3494.4,3494.3,1.8109]
[1754251139911,1.5006,3494.4,3494.3,1.8109]
[1754251140517,1.8085,3494.4,3494.3,1.8109]
[1754251141005,2.3808,3494.4,3494.1,0.57235]
[1754251141205,0.5375,3494.2,3494.1,1.4903]
[1754251141406,1.8085,3494.2,3494.1,1.8109]
[1754251141606,1.5918,3494.1,3494.0,0.89296]
[1754251141807,1.8085,3494.1,3494.0,2.38326]
[1754251142113,1.2943,3494.1,3494.0,2.38326]
[1754251142713,1.6022,3494.1,3494.0,2.38326]
[1754251143316,1.0517,3494.1,3494.0,1.8109]
[1754251143715,1.8085,3494.1,3494.0,1.8109]
[1754251144810,0.2167,3494.2,3494.1,0.77635]
[1754251145113,1.2943,3494.4,3494.3,0.7137]
[1754251145505,1.2943,3494.4,3494.3,1.8109]
[1754251145911,1.8085,3494.4,3494.3,1.8109]
[1754251149109,1.8085,3494.4,3494.3,0.5154]
[1754251149413,1.8085,3494.1,3494.0,1.8109]
[1754251150216,1.8085,3494.1,3493.8,0.5724]
[1754251150514,1.8085,3493.9,3493.8,2.3833]
[1754251152306,1.8085,3493.9,3493.8,1.0343]
[1754251152512,1.8085,3493.9,3493.8,1.5103]
[1754251152713,1.8085,3493.9,3493.8,1.8109]
[1754251155818,1.8085,3493.9,3493.8,0.4951]
[1754251156018,1.8085,3493.9,3493.7,4.07851]
[1754251156215,1.7861,3493.8,3493.7,5.26641]
[1754251156710,1.7861,3493.8,3493.7,5.56471]
[1754251157921,1.7861,3493.8,3493.7,2.35691]
[1754251175232,1.476,3494.1,3494.0,1.7845]
[1754251175434,0.4517,3494.4,3494.1,0.57235]
[1754251175636,0.80363036,3494.3,3494.2,1.7845]
[1754251175833,3.2078,3494.5,3494.4,0.7078]
[1754251176034,4.21461266,3494.5,3494.4,1.7845]
[1754251176234,4.0113931,3494.5,3494.4,1.7845]
[1754251176636,0.8035931,3494.5,3494.4,1.7845]
[1754251176836,3.2078,3494.9,3494.8,2.35674]
[1754251177031,4.21454212,3494.9,3494.8,2.35674]
[1754251177334,2.8813,3494.9,3494.8,2.35674]
[1754251177733,2.8813,3494.9,3494.8,2.58937048]
[1754251178234,4.9939,3495.5,3495.4,2.35664]
[1754251178436,5.79670871,3495.5,3495.4,1.7845]
[1754251179334,4.9939,3495.5,3495.4,1.7845]
[1754251182134,1.7861,3495.5,3495.4,1.7845]
[1754251184535,0.2062,3495.5,3495.4,1.7845]
[1754251184836,1.8331,3495.8,3495.7,1.8167]
[1754251185037,21.3981,3495.8,3495.7,1.8167]
[1754251186439,1.8331,3495.8,3495.7,1.8167]
[1754251186640,21.3971,3495.8,3495.7,1.8167]
[1754251187533,0.723,3495.8,3495.7,1.8167]
[1754251187729,6.41763977,3496.3,3495.6,0.5721]
[1754251187730,0.4069,3496.1,3496.0,1.8167]
[1754251188343,0.7171,3496.1,3496.0,1.8167]
[1754251188539,1.517,3496.1,3496.0,1.8167]
[1754251189238,0.202,3496.1,3496.0,1.8167]
[1754251189442,24.6029,3496.3,3496.2,1.8167]
[1754251189741,5.0409,3496.7,3496.6,1.8167]
[1754251189943,24.6029,3496.7,3496.6,1.8167]
[1754251190540,5.0409,3496.7,3496.6,1.8167]
[1754251190737,4.5145,3496.7,3496.6,1.4946]
[1754251191044,3.72,3496.7,3496.6,1.8167]
[1754251191243,24.6009,3496.7,3496.6,1.8167]
[1754251191439,24.0745,3496.7,3496.6,1.8167]
[1754251191640,22.7678,3496.7,3496.6,1.8167]
[1754251192141,23.28,3496.7,3496.6,1.8167]
[1754251192341,3.2078,3496.7,3496.6,1.8167]
[1754251192943,19.761,3496.9,3496.8,0.416]
[1754251193144,20.5496,3496.9,3496.8,1.8167]
[1754251193345,21.076,3496.9,3496.8,1.8167]
[1754251193541,21.3921,3496.9,3496.8,1.8167]
[1754251196643,1.8331,3496.9,3496.8,1.8167]
[1754251196844,21.3891,3496.9,3496.8,1.8167]
[1754251197041,1.8331,3496.9,3496.8,1.8167]
[1754251197248,21.3881,3496.9,3496.8,1.8167]
[1754251198847,1.8331,3496.9,3496.8,1.8167]
[1754251199045,21.3871,3496.9,3496.8,1.8167]
[1754251199451,1.8331,3496.9,3496.8,1.8167]
[1754251199848,21.3871,3496.9,3496.8,1.8167]
[1754251200952,0.723,3496.9,3496.8,1.8167]
[1754251201254,20.8641,3497.0,3496.9,2.38859]
[1754251201552,21.3851,3497.0,3496.9,2.38859]
[1754251202349,1.517,3496.7,3496.2,0.7577]
[1754251202558,1.8331,3496.1,3496.0,4.51674]
[1754251202853,1.8331,3496.1,3496.0,3.77984]
[1754251203042,1.8331,3496.1,3496.0,5.59654]
[1754251203647,5.04293977,3496.1,3495.8,0.57206]
[1754251203856,1.5229,3495.9,3495.8,0.57206]
[1754251204155,1.8331,3495.9,3495.8,0.57206]
[1754251205151,1.1101,3495.8,3495.7,0.57208]
[1754251205356,1.8331,3495.8,3495.7,0.57208]
[1754251205552,1.8331,3495.8,3495.5,3.5182]
[1754251205553,1.0445,3495.8,3495.6,0.5721]
[1754251205761,1.8331,3495.6,3495.5,3.2078]
[1754251206057,1.8331,3495.6,3495.5,5.0245]
[1754251206447,20.5842,3495.6,3495.5,5.0245]
[1754251206649,20.0691,3495.6,3495.5,5.0245]
[1754251206854,1.1101,3496.5,3496.2,0.572]
[1754251207056,1.8331,3496.3,3496.2,2.3887]
[1754251207754,1.8331,3496.3,3495.9,3.2078]
[1754251207755,0.6317,3496.2,3495.9,3.2078]
[1754251207954,1.8331,3496.0,3495.9,0.7369]
[1754251208160,19.551,3496.2,3496.1,1.30892]
[1754251208350,21.3841,3496.2,3496.1,2.38872]
[1754251209957,20.0691,3496.2,3496.1,2.38872]
[1754251210154,3.2078,3496.5,3496.4,0.57197]
[1754251210358,22.7588,3496.5,3496.4,2.38867]
[1754251210655,23.4759,3496.5,3496.4,2.38867]
[1754251210853,24.5919,3496.5,3496.4,2.38867]
[1754251211054,24.5919,3496.5,3496.4,1.8167]
[1754251211256,21.3841,3496.5,3496.4,1.8167]
[1754251212351,1.8331,3496.3,3496.2,0.572]
[1754251212555,21.3831,3496.3,3496.2,1.0193]
[1754251212756,21.3831,3496.3,3496.2,2.3887]
[1754251213764,21.3831,3496.3,3495.9,3.6938]
[1754251214057,0.4143,3495.8,3495.7,0.57208]
[1754251214252,0.4143,3495.8,3495.4,0.2974]
[1754251214253,0.2954,3495.7,3495.6,0.5721]
[1754251214452,21.3413,3495.7,3495.6,0.7713]
[1754251214652,0.714,3495.4,3495.3,3.77994]
[1754251214858,1.7923,3495.4,3495.3,3.77994]
[1754251215250,1.7923,3495.4,3495.3,4.47904]
[1754251215462,1.7923,3495.4,3495.3,3.77994]
[1754251215756,1.7923,3495.4,3495.3,0.57214]
[1754251216257,0.714,3495.4,3495.2,0.57217]
[1754251216563,1.7923,3495.3,3495.2,1.75727]
[1754251216765,1.7923,3495.3,3495.2,2.05467]
[1754251217055,21.3413,3495.3,3495.2,0.57217]
[1754251218558,0.2062,3495.6,3495.5,1.27122]
[1754251218861,1.7923,3495.8,3495.7,1.75718]
[1754251219063,21.3423,3495.8,3495.7,1.75718]
[1754251219265,21.3423,3495.8,3495.7,2.37008]
[1754251219450,21.3423,3495.8,3495.7,1.798]
[1754251219657,0.714,3495.2,3495.1,2.37019]
[1754251219960,1.7923,3495.2,3495.1,2.37019]
[1754251221459,1.7923,3495.2,3495.1,0.77139]
[1754251221961,1.7923,3495.2,3495.1,1.27129]
[1754251222367,1.7923,3495.2,3495.1,1.75729]
[1754251222561,1.0783,3495.1,3494.9,3.2078]
[1754251222763,1.7923,3495.0,3494.9,3.2078]
[1754251223963,0.714,3495.0,3494.7,0.57225]
[1754251224160,21.3433,3494.9,3494.8,1.4825]
[1754251224363,1.7923,3494.9,3494.8,1.798]
[1754251224561,20.5604,3494.9,3494.8,1.798]
[1754251224865,21.3433,3494.9,3494.8,1.798]
[1754251225266,1.7923,3494.9,3494.8,1.798]
[1754251225564,21.3433,3494.9,3494.8,1.798]
[1754251225959,21.3433,3494.9,3494.8,1.5006]
[1754251226161,1.5861,3494.7,3494.6,0.57226]
[1754251226363,1.7923,3494.7,3494.6,0.57226]
[1754251226555,1.7923,3494.5,3494.4,3.7801]
[1754251226760,21.3433,3494.5,3494.4,3.2078]
[1754251226955,0.714,3493.9,3493.8,5.5782]
[1754251227168,1.7923,3493.9,3493.8,5.5782]
[1754251227867,1.7923,3493.9,3493.8,4.3929]
[1754251228069,1.7923,3493.9,3493.8,3.2078]
[1754251228769,1.7923,3493.9,3493.8,3.407]
[1754251228961,1.7923,3493.9,3493.8,3.7027]
[1754251229160,3.2078,3494.6,3493.8,3.7027]
[1754251229161,1.0783,3494.5,3493.8,4.3067]
[1754251229363,21.1381,3494.4,3494.3,1.3031]
[1754251229564,20.266,3494.4,3494.1,1.05834]
[1754251229770,1.7923,3494.2,3494.1,2.16614]
[1754251230068,1.7923,3494.2,3494.1,2.37034]
[1754251230265,1.7923,3494.2,3494.1,1.798]
[1754251230572,0.714,3493.9,3493.8,3.407]
[1754251230758,1.7923,3493.9,3493.8,3.78019]
[1754251231163,1.7923,3493.9,3493.5,1.0989]
[1754251231358,1.0124,3493.7,3493.4,0.486]
[1754251231664,1.0124,3493.7,3493.3,5.57828]
[1754251231665,0.714,3493.4,3493.3,5.57828]
[1754251231865,19.555,3493.6,3493.3,5.57828]
[1754251232069,0.2062,3493.4,3493.3,4.47938]
[1754251232263,1.7923,3493.4,3493.3,4.47938]
[1754251232563,1.7923,3493.4,3493.3,4.77678]
[1754251232764,1.7923,3493.4,3493.3,5.57828]
[1754251233665,1.7923,3493.4,3493.3,3.2078]
[1754251233860,1.7923,3493.4,3493.0,1.0989]
[1754251233861,1.7923,3493.1,3493.0,0.7834]
[1754251234071,21.3493,3493.1,3493.0,0.9826]
[1754251234263,21.3493,3493.1,3493.0,0.6852]
[1754251234562,1.0081,3493.0,3492.9,1.72974745]
[1754251234765,3.78024,3493.6,3493.0,0.57253]
[1754251235071,20.271,3493.5,3493.4,0.6991]
[1754251235263,19.557,3493.5,3493.2,1.67139]
[1754251235464,3.9218,3493.6,3493.5,1.4825]
[1754251235664,24.05424,3493.6,3492.9,1.03064745]
[1754251235970,1.7923,3493.1,3493.0,2.37053]
[1754251236467,19.584,3493.2,3493.0,2.37053]
[1754251236668,0.5078,3493.8,3493.7,1.798]
[1754251236868,21.3763,3493.8,3493.7,1.798]
[1754251239368,1.7923,3494.1,3494.0,1.798]
[1754251239563,21.3883,3494.1,3494.0,0.4949]
[1754251239767,23.5178,3494.1,3493.7,0.57241]
[1754251239968,1.7923,3493.9,3493.8,1.798]
[1754251240469,21.3863,3493.9,3493.8,1.798]
[1754251242970,1.2864,3494.2,3494.1,0.2042]
[1754251243272,1.2864,3494.2,3494.1,1.798]
[1754251243273,20.8948,3494.2,3494.1,1.798]
[1754251243472,21.3793,3494.2,3494.1,1.798]
[1754251244269,3.9528,3494.5,3494.4,1.4939]
[1754251244473,24.6439,3494.5,3494.4,1.817]
[1754251246374,24.6439,3494.5,3494.4,1.4939]
[1754251246579,24.6439,3494.5,3494.4,0.5211]
[1754251248578,24.6439,3494.5,3494.4,0.727]
[1754251249187,0.745,3494.2,3494.1,1.817]
[1754251249387,21.4271,3494.2,3494.1,1.817]
[1754251250888,20.6295,3494.2,3494.1,1.817]
[1754251251481,20.9537,3494.2,3494.1,1.817]
[1754251251785,21.4271,3494.2,3494.1,1.817]
[1754251251986,1.8461,3494.2,3494.1,1.817]
[1754251252187,21.4211,3494.2,3494.1,1.817]
[1754251253879,0.2129,3493.9,3493.8,3.78019]
[1754251254079,21.4201,3493.9,3493.8,5.27409]
[1754251254285,21.4201,3493.9,3493.8,4.50719]
[1754251254490,21.4201,3493.9,3493.8,5.15099]
[1754251254687,21.4201,3493.9,3493.8,5.0248]
[1754251255089,21.4201,3493.9,3493.8,3.4146]
[1754251255392,21.4201,3493.9,3493.8,3.2078]
[1754251255592,20.319,3493.9,3493.6,0.57243]
[1754251255794,1.8461,3493.8,3493.7,1.817]
[1754251256886,1.8461,3493.8,3493.6,0.57243]
[1754251257086,0.745,3493.4,3493.3,0.727]
[1754251257286,20.0003,3493.4,3493.3,0.727]
[1754251257591,20.0003,3493.4,3493.3,1.4939]
[1754251257791,20.3038,3493.4,3493.3,1.817]
[1754251257990,21.4191,3493.4,3493.3,1.817]
[1754251258394,21.4191,3493.4,3493.1,0.3231]
[1754251258690,1.8461,3493.3,3493.2,1.4939]
[1754251259496,1.8461,3493.3,3493.2,1.817]
[1754251259692,1.8461,3493.3,3493.0,3.78032]
[1754251259893,1.8461,3493.1,3493.0,4.4982]
[1754251260197,21.4251,3493.1,3493.0,5.0248]
[1754251260590,2.41863,3493.0,3492.9,1.03064745]
[1754251260994,0.4273,3492.4,3492.3,0.653]
[1754251261192,21.4311,3492.4,3492.3,0.9673]
[1754251261487,21.4311,3492.4,3492.3,1.0477]
[1754251261694,21.4311,3492.4,3492.3,1.817]
[1754251262088,21.4311,3492.4,3492.3,1.1732]
[1754251262400,44.5108,3492.4,3491.8,0.57272]
[1754251262594,3.2078,3491.9,3491.8,1.4963]
[1754251262795,19.619,3491.9,3491.8,1.817]
[1754251263098,3.2078,3492.3,3492.2,1.817]
[1754251263298,22.8358,3492.3,3492.2,1.817]
[1754251264094,19.628,3492.3,3492.2,1.817]
[1754251264591,22.8358,3492.3,3492.2,1.817]
[1754251265394,41.214,3492.4,3492.2,1.817]
[1754251265591,19.628,3492.3,3492.2,2.38966]
[1754251265895,22.8358,3492.3,3492.0,0.5275]
[1754251266202,0.5727,3492.0,3491.8,0.3231]
[1754251266496,22.8388,3491.9,3491.8,0.3231]
[1754251266885,22.8388,3491.9,3491.5,0.7669]
[1754251267085,22.8388,3491.9,3491.6,1.0477]
[1754251267288,0.57273,3491.8,3491.7,0.3231]
[1754251267687,3.20983977,3491.8,3491.2,0.8506]
[1754251267898,19.636,3491.7,3491.6,1.0501]
[1754251268097,19.636,3491.7,3491.6,1.817]
[1754251268799,3.2078,3491.9,3491.8,0.727]
[1754251268994,22.8438,3491.9,3491.8,1.817]
[1754251269501,3.2078,3491.9,3491.8,1.817]
[1754251269703,22.8448,3491.9,3491.8,1.817]
[1754251271491,3.2078,3491.9,3491.8,1.817]
[1754251271696,22.8398,3491.9,3491.8,1.817]
[1754251272900,19.632,3491.9,3491.8,1.817]
[1754251273800,3.2078,3492.4,3492.3,0.7274]
[1754251274103,3.2078,3492.8,3492.7,1.812]
[1754251274300,22.8388,3492.8,3492.7,1.812]
[1754251275600,3.2078,3492.8,3492.7,2.38458]
[1754251275794,22.8368,3492.8,3492.7,5.59441977]
[1754251275995,3.2078,3492.8,3492.7,2.38458]
[1754251277096,19.632,3492.9,3492.7,2.38458]
[1754251277302,19.632,3492.9,3492.8,1.812]
[1754251277603,19.629,3492.9,3492.8,0.7274]
[1754251277802,3.2078,3493.2,3492.8,0.7274]
[1754251277996,19.629,3493.1,3492.8,0.7274]
[1754251278191,19.629,3493.1,3493.0,0.7274]
[1754251278395,19.629,3493.1,3493.0,1.812]
[1754251278600,3.2078,3493.2,3493.1,1.812]
[1754251278802,22.8328,3493.2,3493.1,1.812]
[1754251278994,22.8328,3493.2,3493.1,1.0286]
[1754251279198,22.8328,3493.2,3493.1,0.3086]
[1754251279402,0.57255,3492.9,3492.3,0.3086]
[1754251279598,22.8328,3492.8,3492.4,0.7274]
[1754251279801,22.8328,3492.8,3492.5,1.812]
[1754251280000,22.8328,3492.8,3492.7,0.3086]
[1754251281507,22.8358,3492.8,3492.7,1.812]
[1754251283207,22.8358,3492.8,3492.7,0.3086]
[1754251283407,22.8358,3492.8,3492.7,0.6181]
[1754251283600,22.8358,3492.8,3492.7,0.8228]
[1754251283801,22.8318,3492.8,3492.7,1.812]
[1754251290606,22.8318,3492.8,3492.1,3.2078]
[1754251290607,0.57258,3492.7,3492.1,3.2078]
[1754251290810,3.2078,3492.3,3492.2,0.3086]
[1754251291012,22.8168,3492.3,3492.2,0.3086]
[1754251293212,22.8168,3492.3,3492.2,1.3455]
[1754251293414,22.8168,3492.3,3492.2,1.812]
[1754251294415,3.2078,3492.8,3492.3,0.57264]
[1754251294717,3.2078,3492.8,3492.7,1.812]
[1754251294910,22.8158,3492.8,3492.7,1.812]
[1754251296517,23.61811424,3492.8,3492.7,1.812]
[1754251297314,4.01011424,3492.8,3492.7,1.812]
[1754251297512,22.8148,3492.8,3492.7,1.812]
[1754251298313,3.2078,3492.8,3492.7,1.812]
[1754251298617,22.8148,3492.8,3492.7,1.812]
[1754251299513,22.8148,3492.8,3492.7,1.3455]
[1754251299716,0.57262,3492.5,3492.4,0.3086]
[1754251300019,0.57262,3492.5,3492.3,0.3095]
[1754251300020,0.57265,3492.3,3492.2,0.3086]
[1754251300316,23.38545,3492.3,3492.2,0.3086]
[1754251300717,22.8128,3492.3,3492.2,0.3086]
[1754251302112,22.8128,3492.3,3492.2,0.8228]
[1754251302822,22.8128,3492.3,3492.2,0.3086]
[1754251304208,22.8128,3492.3,3492.2,1.3461]
[1754251304614,22.8128,3492.3,3492.2,1.8063]
[1754251307014,3.2078,3492.3,3492.2,1.8063]
[1754251307216,2.8804,3492.3,3492.2,1.8063]
[1754251307416,22.4764,3492.3,3492.2,1.8063]
[1754251309322,19.596,3492.3,3492.2,1.8063]
[1754251310326,0.5247,3492.6,3492.5,0.7413]
[1754251310621,20.1207,3492.6,3492.5,1.8008]
[1754251310821,19.8098,3492.6,3492.5,1.8008]
[1754251311020,3.7325,3492.8,3492.7,0.7413]
[1754251311315,3.2078,3492.8,3492.7,1.8008]
[1754251311522,3.2078,3492.8,3492.1,6.4214606]
[1754251311523,3.7325,3493.2,3493.1,2.37331]
[1754251311710,23.53321362,3493.2,3493.1,2.37331]
[1754251312525,23.53321362,3493.2,3493.1,1.8008]
[1754251312718,23.3335,3493.2,3493.1,1.8008]
[1754251313121,22.8088,3493.2,3493.1,1.8008]
[1754251313727,23.3335,3493.2,3493.1,1.8008]
[1754251315420,23.3275,3493.2,3492.6,0.5726]
[1754251315623,23.3275,3493.2,3492.7,1.0394]
[1754251315624,0.5247,3492.8,3492.7,1.0394]
[1754251315928,20.1167,3492.8,3492.7,1.3406]
[1754251316128,20.1167,3492.8,3492.7,1.8008]
[1754251320132,19.8058,3492.8,3492.7,0.2981]
[1754251320327,23.3245,3492.8,3492.7,0.2981]
[1754251320827,19.585,3493.0,3492.9,0.7413]
[1754251321028,3.2078,3493.2,3493.1,0.7413]
[1754251321226,22.7938,3493.2,3493.1,1.8008]
[1754251321420,3.2078,3493.2,3493.1,1.8008]
[1754251322929,20.1167,3493.5,3493.4,0.7413]
[1754251323231,20.1167,3493.5,3493.4,1.8008]
[1754251323431,19.592,3493.5,3493.4,1.8008]
[1754251324322,19.8058,3493.5,3493.4,1.8008]
[1754251324531,19.592,3493.5,3493.4,1.8008]
[1754251324722,4.06165,3493.7,3493.6,1.3406]
[1754251324927,23.65365,3493.7,3493.6,1.8008]
[1754251325631,23.86745,3493.7,3493.6,1.8008]
[1754251327026,24.17835,3493.7,3493.6,1.8008]
[1754251328333,20.65965,3493.7,3493.6,1.8008]
[1754251328532,20.44585,3493.7,3493.6,1.8008]
[1754251329332,20.65965,3493.7,3493.6,1.8008]
[1754251331133,20.97055,3493.7,3493.6,1.8008]
[1754251332232,0.2138,3493.5,3493.4,0.506]
[1754251332434,20.1007,3493.5,3493.4,0.506]
[1754251333234,20.1007,3493.5,3493.1,0.2981]
[1754251333235,20.36226,3493.5,3493.1,0.2981]
[1754251333434,0.3109,3493.1,3493.0,1.86052]
[1754251333735,20.1007,3493.1,3492.9,0.57254]
[1754251333935,19.7898,3493.1,3493.0,0.3121]
[1754251334530,20.0938,3493.1,3493.0,0.3121]
[1754251334733,0.2096,3492.9,3492.8,1.62015]
[1754251334936,0.5136,3492.9,3492.8,2.08555]
[1754251335136,20.0926,3492.9,3492.8,0.5419]
[1754251335335,23.3004,3492.9,3492.8,0.3121]
[1754251335940,0.2096,3492.2,3492.1,1.32237]
[1754251336134,0.5136,3492.2,3492.1,2.08567]
[1754251336335,0.5136,3492.2,3492.1,2.39777]
[1754251339941,19.58,3492.3,3492.1,1.32237]
[1754251340140,19.7896,3492.3,3492.2,1.8251]
[1754251340331,20.0936,3492.3,3492.2,1.8251]
[1754251340539,20.0936,3492.3,3492.2,1.3597]
[1754251340737,20.0936,3492.3,3492.2,1.0618]
[1754251341137,20.0936,3492.3,3492.2,1.8251]
[1754251341343,20.0936,3492.3,3492.2,1.0618]
[1754251341531,20.0936,3492.3,3492.2,0.854]
[1754251342343,20.0936,3492.3,3491.7,3.2078]
[1754251342638,0.5136,3491.4,3491.3,2.39791]
[1754251342831,0.2096,3491.4,3491.3,2.39791]
[1754251343144,19.7876,3491.6,3491.5,2.39788]
[1754251344041,19.578,3491.6,3491.5,2.39788]
[1754251344342,0.304,3491.8,3491.7,2.39784]
[1754251344542,20.0926,3491.8,3491.7,2.39784]
[1754251344938,0.5136,3491.8,3491.7,2.39784]
[1754251345239,20.0926,3491.8,3491.7,2.39784]
[1754251345439,23.00443603,3491.8,3491.5,0.57276]
[1754251345639,0.5136,3491.7,3491.6,0.3121]
[1754251346039,0.5136,3491.7,3491.6,1.513]
[1754251346240,0.5136,3491.7,3491.6,1.8251]
[1754251346635,3.2078,3492.0,3491.9,1.8251]
[1754251346938,3.2078,3492.4,3492.2,1.32235]
[1754251347140,19.58,3492.3,3492.2,1.32235]
[1754251347346,19.58,3492.3,3492.2,2.39775]
[1754251347647,20.0936,3492.3,3492.2,1.8251]
[1754251348147,23.30943603,3492.3,3492.2,0.3121]
[1754251348349,19.7896,3492.3,3492.2,1.63446]
[1754251348641,20.0936,3492.3,3492.2,2.39776]
[1754251348839,20.0936,3492.3,3492.2,0.3121]
[1754251349443,20.0936,3492.3,3492.2,1.3597]
[1754251349651,20.0936,3492.3,3492.2,1.8251]
[1754251353453,20.0936,3492.3,3492.2,0.3121]
[1754251356059,0.304,3492.1,3491.4,1.0754]
[1754251356253,0.304,3491.8,3491.6,0.2979]
[1754251356460,0.5136,3491.8,3491.7,1.0618]
[1754251356754,0.2096,3491.5,3491.4,0.3121]
[1754251356956,0.57283,3491.2,3491.0,0.6365]
[1754251357162,26.53323603,3491.1,3491.0,0.5419]
[1754251357756,0.2096,3490.7,3490.6,1.78802]
[1754251357956,0.5136,3490.7,3490.6,1.78802]
[1754251358254,0.2096,3490.7,3490.6,2.39802]
[1754251358450,19.599,3490.8,3490.6,0.7497]
[1754251358655,20.1126,3490.8,3490.7,2.39801]
[1754251359156,19.8086,3490.8,3490.7,0.7497]
[1754251359362,19.599,3490.8,3490.7,1.8251]
[1754251360064,3.4174,3491.5,3491.4,1.8251]
[1754251360259,23.3214,3491.5,3491.4,1.8251]
[1754251360560,20.1136,3491.5,3491.4,1.8251]
[1754251360863,0.5136,3491.8,3491.7,0.7497]
[1754251361062,19.641,3491.8,3491.7,2.39783]
[1754251361654,19.648,3491.8,3491.7,0.7497]
[1754251361858,20.1616,3491.8,3491.7,0.7497]
[1754251362360,0.5136,3491.8,3491.7,1.8251]
[1754251362556,20.1606,3491.8,3491.7,1.8251]
[1754251363463,20.1606,3491.8,3491.7,1.0618]
[1754251363960,20.1606,3491.8,3491.7,1.8362]
[1754251365163,20.1606,3491.8,3491.7,0.3121]
[1754251365565,20.1606,3491.8,3491.7,0.5303]
[1754251365863,20.1606,3491.8,3491.7,0.8477]
[1754251366057,20.1606,3491.8,3491.7,1.1562]
[1754251366257,20.1606,3491.8,3491.7,1.8187]
[1754251366451,0.2096,3491.8,3491.7,1.8187]
[1754251366766,3.2078,3491.9,3491.8,2.38753]
[1754251367259,19.639,3492.0,3491.8,2.38753]
[1754251367564,19.639,3492.0,3491.9,1.8148]
[1754251367764,3.2078,3492.3,3492.2,0.7322]
[1754251367965,22.8508,3492.3,3492.2,1.8148]
[1754251368163,23.0648,3492.3,3492.2,1.8148]
[1754251368360,3.4218,3492.3,3492.2,1.8148]
[1754251368559,23.0658,3492.3,3492.2,1.8148]
[1754251368762,3.2078,3492.3,3492.2,1.8148]
[1754251368964,22.8508,3492.3,3492.2,1.8148]
[1754251369560,23.0648,3492.3,3492.2,1.8148]
[1754251372165,26.58113603,3492.3,3492.2,0.3082]
[1754251372868,26.58113603,3492.3,3492.2,1.8148]
[1754251373869,23.3653,3492.3,3492.2,1.8148]
[1754251375264,23.3653,3492.3,3492.2,0.3082]
[1754251375470,26.58113603,3492.3,3492.2,0.3082]
[1754251377068,0.5145,3491.7,3491.6,2.07906]
[1754251377266,19.624,3491.7,3491.6,1.61316]
[1754251377570,19.624,3491.7,3491.6,2.38756]
[1754251379072,3.4218,3492.3,3492.2,1.0404]
[1754251379273,23.3423,3492.3,3492.2,1.8148]
[1754251381978,26.55813603,3492.3,3492.2,1.8148]
[1754251382277,26.55813603,3492.3,3492.2,0.3082]
[1754251383776,26.55813603,3492.3,3492.2,0.5264]
[1754251383974,26.55813603,3492.3,3492.2,1.8148]
[1754251384673,6.93813603,3492.3,3492.2,1.3489]
[1754251384872,26.54713603,3492.3,3492.2,1.3489]